bitfinex-derivatives/quotes_ETHF0:USTF0_20241018
["timestamp","ask_amount","ask_price","bid_price","bid_amount"]
[1729288812986,0.37846,2642.1,2642.0,0.6484]
[1729288813188,1.73846,2642.1,2642.0,0.6484]
[1729288817088,1.36,2642.1,2642.0,0.6484]
[1729288817393,1.73846,2642.1,2642.0,0.6484]
[1729288817599,1.36,2642.1,2642.0,1.02688]
[1729288817893,1.73846,2642.1,2642.0,0.6484]
[1729288819697,1.36,2642.1,2642.0,0.6484]
[1729288819894,1.36,2642.1,2642.0,1.02688]
[1729288820089,1.36,2642.1,2642.0,0.6484]
[1729288820290,1.73846,2642.1,2642.0,0.6484]
[1729288826592,1.73846,2642.1,2642.0,1.02688]
[1729288826994,1.73846,2642.1,2642.0,0.6484]
[1729288827197,6.18716,2642.1,2642.0,0.6484]
[1729288827891,6.18716,2642.1,2642.0,1.02688]
[1729288828293,6.18716,2642.1,2642.0,0.6484]
[1729288828497,6.18716,2642.1,2642.0,1.02688]
[1729288829199,2.40236,2642.1,2642.0,1.02688]
[1729288829599,2.40236,2642.1,2642.0,0.6484]
[1729288831593,2.40236,2642.1,2642.0,1.02688]
[1729288832908,2.40236,2642.1,2641.8,1.2691]
[1729288832909,0.37849,2641.9,2641.8,1.2691]
[1729288833098,1.36,2641.9,2641.4,3.2078]
[1729288833293,0.37854,2641.6,2641.5,1.3053]
[1729288833810,0.37856,2641.4,2641.3,0.37857]
[1729288834104,1.36,2641.4,2641.2,1.3053]
[1729288834304,1.73858,2641.3,2641.2,1.9705]
[1729288835097,6.5064,2641.3,2640.9,0.37863]
[1729288835304,1.36,2641.0,2640.9,1.04383]
[1729288835600,1.36,2641.0,2640.9,0.6652]
[1729288835802,0.37862,2641.0,2640.9,0.6652]
[1729288836007,4.94642,2641.0,2640.9,0.6652]
[1729288836205,1.73862,2641.0,2640.9,0.6652]
[1729288836508,4.94642,2641.0,2640.9,0.6652]
[1729288836803,8.3542,2641.0,2640.5,0.37869]
[1729288837114,1.73868,2640.6,2640.5,1.67919]
[1729288837302,1.36,2640.6,2640.5,1.67919]
[1729288837498,1.73868,2640.6,2640.5,1.67919]
[1729288838214,1.36,2640.6,2640.5,1.67919]
[1729288839097,1.73868,2640.6,2640.5,1.3005]
[1729288839409,1.73868,2640.6,2640.5,1.67919]
[1729288839614,1.73868,2640.6,2640.5,1.3005]
[1729288842711,0.37868,2640.6,2640.5,1.3005]
[1729288842898,0.94657,2641.0,2640.6,0.37868]
[1729288842899,0.37862,2641.0,2640.6,0.37868]
[1729288843105,7.3848,2641.4,2640.8,1.36]
[1729288843304,7.3848,2641.4,2641.3,0.37858]
[1729288843305,8.7448,2641.4,2641.3,0.37858]
[1729288843507,4.5678,2641.4,2641.3,0.37858]
[1729288843707,4.5678,2641.4,2641.3,4.16418]
[1729288844121,4.5678,2641.4,2641.3,0.37858]
[1729288848326,4.5678,2641.4,2641.3,4.16418]
[1729288850206,4.5678,2641.4,2641.3,0.37858]
[1729288854318,1.36,2641.4,2641.3,0.37858]
[1729288857421,1.36,2641.4,2641.3,4.16418]
[1729288858931,3.2078,2641.7,2641.6,0.37853]
[1729288859929,4.5678,2641.7,2641.6,0.37853]
[1729288861619,0.6578,2642.3,2641.8,0.94626]
[1729288861824,1.36,2642.1,2641.9,6.0179]
[1729288862020,1.36,2642.1,2642.0,0.37848]
[1729288863322,1.36,2642.1,2642.0,1.19248]
[1729288863725,1.36,2642.1,2642.0,2.55248]
[1729288864123,3.58623,2642.4,2642.2,0.37844]
[1729288864321,1.36,2642.3,2642.2,0.37844]
[1729288866325,4.5678,2642.4,2642.3,0.37843]
[1729288868431,1.36,2642.5,2642.3,5.1448]
[1729288868735,1.36,2642.5,2642.4,2.38452]
[1729288868937,1.36,2642.5,2642.4,3.74452]
[1729288869134,1.36,2642.6,2642.5,0.37841]
[1729288871830,3.8766,2643.0,2642.5,5.144]
[1729288872031,3.8766,2643.0,2642.9,0.37835]
[1729288872225,0.6688,2643.0,2642.9,0.37835]
[1729288872433,2.0288,2643.0,2642.9,0.37835]
[1729288872637,1.36,2643.1,2642.9,0.6331]
[1729288872834,1.36,2643.1,2643.0,0.37833]
[1729288875538,1.36,2643.1,2643.0,1.73833]
[1729288877840,1.36,2643.1,2643.0,1.19133]
[1729288878044,1.36,2643.1,2643.0,1.87573]
[1729288879737,1.73831,2643.2,2643.1,0.37832]
[1729288880045,4.5678,2643.3,2643.1,1.36]
[1729288880236,0.6607,2643.6,2643.2,1.36]
[1729288880432,0.6607,2643.6,2643.5,1.73826]
[1729288880632,1.9951,2643.7,2643.6,0.37825]
[1729288881041,2.37333,2643.7,2643.6,0.37825]
[1729288881943,1.9951,2643.7,2643.6,0.37825]
[1729288883939,2.37333,2643.7,2643.6,0.37825]
[1729288884342,0.6351,2643.7,2643.6,1.73825]
[1729288884547,3.2078,2643.8,2643.7,0.37823]
[1729288884754,3.2078,2643.8,2643.7,1.73823]
[1729288885347,1.36,2644.0,2643.9,0.37821]
[1729288885845,1.73819,2644.0,2643.9,0.37821]
[1729288886246,1.36,2644.0,2643.9,0.37821]
[1729288886834,1.73819,2644.0,2643.9,0.37821]
[1729288887443,1.36,2644.0,2643.9,0.37821]
[1729288887646,1.73819,2644.0,2643.9,0.37821]
[1729288888150,1.36,2644.0,2643.9,0.37821]
[1729288888840,1.73819,2644.0,2643.9,0.37821]
[1729288889952,0.37821,2643.9,2643.8,0.37821]
[1729288890150,1.73821,2643.9,2643.8,0.37821]
[1729288890350,1.36,2643.9,2643.8,0.37821]
[1729288890543,0.3782,2644.0,2643.9,0.37821]
[1729288890544,1.7382,2644.0,2643.9,0.37821]
[1729288899255,6.08789,2644.0,2643.2,3.2078]
[1729288899457,1.73829,2643.4,2643.3,0.813]
[1729288899659,0.37831,2643.2,2643.1,0.37831]
[1729288899949,1.36,2643.2,2642.9,1.36]
[1729288900157,0.37834,2643.0,2642.9,1.73835]
[1729288900357,1.73833,2643.1,2642.9,1.73835]
[1729288900558,1.36,2643.2,2643.0,1.36]
[1729288900761,0.37832,2643.1,2642.9,1.36]
[1729288900963,0.37833,2643.0,2642.9,1.73834]
[1729288901265,3.4128,2643.3,2643.1,0.37831]
[1729288901556,0.37832,2643.1,2643.0,1.36]
[1729288902659,0.37832,2643.1,2643.0,1.73833]
[1729288903561,0.37832,2643.1,2643.0,1.36]
[1729288903764,0.37832,2643.1,2643.0,1.73833]
[1729288904765,1.73832,2643.2,2643.1,0.37832]
[1729288904966,0.37832,2643.1,2643.0,1.73832]
[1729288906951,0.37832,2643.1,2643.0,1.73833]
[1729288911072,1.36,2643.2,2643.0,1.36]
[1729288911267,0.37832,2643.1,2643.0,1.73832]
[1729288912266,1.36,2643.2,2643.0,1.73832]
[1729288912267,1.73832,2643.2,2643.1,0.37832]
[1729288912468,1.36,2643.2,2643.1,0.37832]
[1729288912671,1.73831,2643.2,2643.1,0.37832]
[1729288918270,1.73831,2643.2,2643.1,1.06302]
[1729288920664,1.36,2643.2,2642.6,2.30302997]
[1729288920863,1.73838,2642.7,2642.6,0.6303]
[1729288921059,1.73838,2642.7,2642.4,0.37841]
[1729288921060,0.37842,2642.5,2642.4,0.37841]
[1729288921267,1.73842,2642.5,2642.4,0.37841]
[1729288922171,1.73842,2642.5,2642.3,1.01292]
[1729288922172,0.37842,2642.4,2642.3,1.01292]
[1729288922577,1.73841,2642.5,2642.4,0.37842]
[1729288922779,0.37842,2642.4,2642.3,1.01293]
[1729288923079,0.6564,2642.7,2642.5,0.37841]
[1729288923080,0.9852481,2642.7,2642.5,0.37841]
[1729288923369,0.9852481,2643.0,2642.9,0.37835]
[1729288923579,0.9852481,2643.0,2642.9,1.73835]
[1729288923880,5.5530481,2643.2,2643.0,0.37833]
[1729288924066,5.5530481,2643.2,2643.1,1.73832]
[1729288924067,3.2078,2643.2,2643.1,1.73832]
[1729288925878,3.2078,2643.2,2643.1,0.37832]
[1729288926970,3.2078,2643.2,2642.8,0.6635]
[1729288927366,0.37834,2643.0,2642.8,1.04185]
[1729288927576,0.37835,2642.9,2642.8,0.6635]
[1729288928079,0.37835,2642.9,2642.8,1.04186]
[1729288928780,0.37834,2643.0,2642.8,1.04186]
[1729288929075,0.37835,2642.9,2642.8,1.04186]
[1729288929464,0.37835,2642.9,2642.8,0.6635]
[1729288930078,0.37835,2642.9,2642.8,1.04186]
[1729288930269,0.37835,2642.9,2642.8,0.6635]
[1729288930465,3.58615,2642.9,2642.8,0.6635]
[1729288930665,6.9918,2642.9,2642.5,0.3784]
[1729288930868,6.9918,2642.9,2642.4,0.37842]
[1729288930869,0.6704,2642.8,2642.4,0.37842]
[1729288931064,0.6704,2642.8,2642.3,2.1394]
[1729288931065,0.37842,2642.5,2642.3,1.70583]
[1729288931267,0.37842,2642.5,2642.1,0.812]
[1729288931268,3.2078,2642.6,2642.2,0.37844]
[1729288931476,0.37843,2642.4,2642.2,0.37844]
[1729288931673,4.1930481,2642.6,2642.2,0.37844]
[1729288931872,3.2078,2642.6,2642.2,0.37844]
[1729288932179,4.1930481,2642.6,2642.0,1.3274]
[1729288932366,0.37844,2642.3,2642.0,1.3274]
[1729288932568,0.37844,2642.3,2642.1,0.37845]
[1729288932767,5.1390481,2642.6,2642.1,0.37845]
[1729288932978,0.37845,2642.3,2642.1,0.37845]
[1729288933177,0.37844,2642.3,2642.2,0.37844]
[1729288933478,0.37844,2642.3,2642.2,0.37845]
[1729288933879,0.37844,2642.3,2642.1,0.37845]
[1729288934272,0.37843,2642.4,2642.1,0.37846]
[1729288934588,0.37843,2642.3,2642.2,0.37844]
[1729288935267,0.9852481,2642.6,2642.0,1.3274]
[1729288935580,3.2078,2642.4,2642.3,0.37843]
[1729288935777,3.2078,2642.7,2642.1,0.94615]
[1729288935976,3.2078,2642.7,2642.6,0.37839]
[1729288937483,3.58618,2642.7,2642.6,0.37839]
[1729288938976,0.37838,2642.7,2642.6,0.37839]
[1729288940774,0.37838,2642.7,2642.0,0.813]
[1729288940775,2.95,2642.7,2642.0,0.813]
[1729288940982,0.37843,2642.4,2642.3,0.37843]
[1729288941379,0.37844,2642.3,2642.2,0.37844]
[1729288941579,3.58624,2642.3,2642.2,0.37844]
[1729288941785,0.37844,2642.3,2642.2,0.37844]
[1729288942782,5.5199481,2642.6,2642.1,0.688]
[1729288942978,0.37845,2642.2,2642.1,1.06645]
[1729288943186,0.37845,2642.2,2642.1,0.688]
[1729288944477,4.1930481,2642.3,2641.6,3.2078]
[1729288944685,0.3785,2641.9,2641.8,0.3785]
[1729288946082,0.3785,2641.9,2641.7,0.6531]
[1729288946287,0.37851,2641.8,2641.7,1.03161]
[1729288946593,0.37853,2641.6,2641.5,1.19154]
[1729288946780,0.37853,2641.6,2641.5,0.37854]
[1729288947195,0.9852481,2641.7,2641.4,0.6285]
[1729288947391,0.37855,2641.5,2641.4,1.00706]
[1729288948084,1.00684,2641.6,2641.4,1.00706]
[1729288948488,0.6283,2641.6,2641.4,0.6285]
[1729288948687,0.37855,2641.5,2641.4,0.6285]
[1729288949391,3.7856,2641.5,2640.8,0.813]
[1729288949590,0.37861,2641.1,2640.9,1.05353]
[1729288949787,3.2078,2641.0,2640.9,1.05353]
[1729288952793,0.37861,2641.1,2640.9,1.05353]
[1729288953389,0.37861,2641.1,2640.9,0.6749]
[1729288953593,0.37862,2641.0,2640.9,1.05353]
[1729288953788,3.2078,2641.3,2640.9,0.6749]
[1729288953994,0.3786,2641.2,2641.0,0.37862]
[1729288954294,0.37861,2641.1,2641.0,0.37862]
[1729288955994,0.3786,2641.2,2641.1,0.3786]
[1729288956396,3.2078,2641.3,2640.9,0.6749]
[1729288956591,0.37861,2641.1,2641.0,0.37861]
[1729288957004,0.37862,2641.0,2640.9,1.05353]
[1729288957700,3.2078,2641.3,2640.9,0.6749]
[1729288958103,0.37862,2641.1,2641.0,0.37862]
[1729288958501,3.2078,2641.3,2640.9,0.6749]
[1729288958702,0.37862,2641.0,2640.9,1.05352]
[1729288960306,0.37862,2641.1,2641.0,0.37861]
[1729288965909,3.2078,2641.5,2641.0,3.7864]
[1729288966115,3.2078,2641.5,2641.4,0.37856]
[1729288968715,2.95,2641.9,2641.3,1.3338]
[1729288968923,3.58632,2641.7,2641.6,0.37852]
[1729288969614,3.2078,2641.7,2641.3,0.6496]
[1729288969813,3.58633,2641.7,2641.6,0.37853]
[1729288970509,3.2078,2641.7,2641.3,0.6496]
[1729288970710,6.1578,2641.7,2641.3,0.6496]
[1729288970906,0.37859,2641.2,2641.1,0.3786]
[1729288971613,6.1578,2641.4,2640.8,2.1652]
[1729288971921,0.37861,2641.1,2641.0,0.3786]
[1729288973413,6.1578,2641.2,2640.8,0.6725]
[1729288973614,3.58643,2640.9,2640.8,1.05114]
[1729288974211,3.2078,2640.9,2640.8,1.05114]
[1729288975119,2.95,2641.2,2640.8,0.6725]
[1729288975120,0.37861,2641.1,2640.8,0.6725]
[1729288975322,0.37861,2641.1,2641.0,0.37862]
[1729288975522,0.37861,2641.1,2640.8,0.6725]
[1729288975523,0.37863,2641.0,2640.9,0.37863]
[1729288975718,2.95,2641.2,2640.8,0.6725]
[1729288976029,3.2078,2641.3,2641.2,0.37858]
[1729288976030,0.37858,2641.3,2641.2,0.37858]
[1729288976231,0.37857,2641.4,2641.3,0.37857]
[1729288976928,3.8698,2641.6,2641.0,0.6812]
[1729288977125,3.8698,2641.6,2641.2,0.37858]
[1729288977126,0.37859,2641.3,2641.2,0.37858]
[1729288979324,0.37857,2641.4,2641.3,0.37856]
[1729288980225,3.58637,2641.4,2641.3,0.37856]
[1729288980630,0.37857,2641.4,2641.3,0.37856]
[1729288981428,6.1578,2641.7,2641.1,0.6867]
[1729288981630,3.2078,2641.7,2641.6,0.37853]
[1729288982230,3.58632,2641.7,2641.6,0.37853]
[1729288982825,3.2078,2641.7,2641.6,0.37853]
[1729288983027,3.58632,2641.7,2641.6,0.37853]
[1729288983226,3.2078,2641.7,2641.6,0.37853]
[1729288984222,3.2078,2641.7,2641.5,1.3666]
[1729288984417,0.9852481,2642.1,2641.5,1.3666]
[1729288984622,3.2078,2642.2,2642.1,0.37846]
[1729288984823,3.9352481,2642.6,2642.1,0.94616]
[1729288985021,3.89614,2642.2,2641.5,4.88722997]
[1729288985222,0.37851,2641.8,2641.7,0.37851]
[1729288985425,2.95,2641.9,2641.6,2.1497]
[1729288985629,3.3285,2641.9,2641.7,0.37852]
[1729288985932,3.3285,2641.9,2641.6,2.1497]
[1729288985933,0.37852,2641.8,2641.6,2.1497]
[1729288986127,0.37852,2641.8,2641.7,0.37852]
[1729288986829,2.95,2641.9,2641.6,2.1497]
[1729288987029,0.37851,2641.8,2641.7,0.37851]
[1729288987230,2.95,2641.9,2641.6,1.3377]
[1729288987425,0.37857,2641.4,2641.3,0.37858]
[1729288987627,2.95,2641.3,2641.0,1.4621]
[1729288987819,2.95,2641.3,2641.0,0.6501]
[1729288987820,0.37861,2641.1,2641.0,0.6501]
[1729288988025,6.1578,2641.1,2640.6,0.98392997]
[1729288988221,0.37866,2640.7,2640.6,0.6554]
[1729288988530,0.37866,2640.7,2639.9,0.2079818]
[1729288988531,5.41312025,2640.7,2639.9,0.2079818]
[1729288988731,0.98684247,2640.4,2640.3,0.37872]
[1729288988931,42.16551247,2640.7,2640.5,0.37869]
[1729288989138,41.17867,2640.7,2640.5,0.37869]
[1729288989430,3.93684247,2640.8,2640.2,0.98392997]
[1729288989634,4.6880637,2640.9,2640.2,0.98392997]
[1729288989635,4.19464247,2640.9,2640.8,0.37865]
[1729288989829,3.2078,2640.9,2640.8,0.37865]
[1729288990023,3.2078,2640.9,2640.7,0.37865]
[1729288990229,3.2078,2640.9,2640.8,0.37865]
[1729288990933,0.98684247,2641.2,2641.0,0.37862]
[1729288991331,1.36543247,2641.2,2640.7,1.3654]
[1729288991733,1.36543247,2641.2,2641.0,0.37861]
[1729288992034,4.92368494,2641.1,2640.3,0.98392997]
[1729288992230,0.37869,2640.6,2640.4,0.3787]
[1729288992736,0.37869,2640.6,2640.3,1.3151]
[1729288992937,5.22881963,2640.7,2640.3,1.3151]
[1729288993135,0.37868,2640.6,2640.5,0.37868]
[1729288993337,0.98724963,2640.7,2640.6,0.37868]
[1729288993534,0.98724963,2640.9,2640.8,0.37865]
[1729288993738,0.98724963,2641.0,2640.8,0.37865]
[1729288993944,0.98724963,2641.0,2640.9,0.37863]
[1729288994442,0.3786,2641.2,2641.1,0.37861]
[1729288994732,2.02092963,2641.3,2641.1,0.37861]
[1729288995034,0.37859,2641.2,2641.1,0.37861]
[1729288995240,2.02093963,2641.3,2641.1,0.37861]
[1729288996033,0.37859,2641.2,2641.1,0.37861]
[1729288996341,2.02093963,2641.3,2641.1,0.3786]
[1729288996534,2.02093963,2641.3,2640.8,1.3631]
[1729288996535,4.59234963,2641.3,2640.8,1.74174]
[1729288996736,4.59234963,2641.3,2641.0,0.37862]
[1729288996737,0.98724963,2641.1,2641.0,0.37862]
[1729288997332,5.22872963,2641.3,2641.2,0.37859]
[1729288997540,2.02092963,2641.3,2640.8,1.3631]
[1729288997739,0.37859,2641.2,2641.1,0.3786]
[1729288998038,0.37859,2641.2,2640.8,0.6974]
[1729288998039,0.37863,2640.9,2640.8,0.6974]
[1729288998334,2.95,2641.2,2640.8,0.6974]
[1729288998335,0.37861,2641.1,2641.0,0.37862]
[1729288998539,2.95,2641.2,2640.8,0.6974]
[1729288998742,3.3286,2641.2,2641.1,0.37861]
[1729288999340,0.37856,2641.5,2641.4,0.37856]
[1729288999635,3.2078,2641.6,2640.9,0.6794]
[1729288999836,0.37857,2641.4,2641.3,0.37857]
[1729289000344,0.37858,2641.3,2641.2,0.37859]
[1729289000637,0.37858,2641.3,2640.8,1.64401]
[1729289000638,4.15425,2641.3,2640.8,1.68788952]
[1729289000840,0.37861,2641.1,2641.0,0.37861]
[1729289001039,0.98725036,2641.1,2641.0,0.37861]
[1729289001741,0.37861,2641.1,2641.0,0.37861]
[1729289002130,4.77365036,2641.1,2640.5,0.99048952]
[1729289002335,4.77365036,2641.1,2640.5,0.65]
[1729289002336,0.37868,2640.6,2640.5,0.65]
[1729289002532,0.37868,2640.6,2640.1,0.99048952]
[1729289002533,2.95,2640.6,2640.1,0.99048952]
[1729289002737,0.37874,2640.2,2640.1,0.65]
[1729289002938,0.37874,2640.2,2640.1,1.02875]
[1729289003538,0.37874,2640.2,2640.1,1.02874]
[1729289003730,2.95,2640.2,2639.7,1.80248952]
[1729289004046,0.37874,2640.2,2640.1,0.37874]
[1729289004339,3.2078,2640.3,2639.7,1.4838]
[1729289004543,0.37874,2640.2,2640.1,0.37874]
[1729289005232,6.53653,2640.3,2640.2,0.37874]
[1729289005435,3.2078,2640.3,2640.2,0.37874]
[1729289005635,0.37874,2640.2,2639.8,4.19828952]
[1729289005934,0.37873,2640.3,2640.2,0.37873]
[1729289006740,3.6494,2640.5,2639.8,4.15477]
[1729289006931,0.37872,2640.4,2640.3,0.37871]
[1729289007332,0.37871,2640.4,2640.3,0.37871]
[1729289007537,0.37871,2640.4,2640.1,3.2078]
[1729289007538,3.6494,2640.5,2640.2,0.6792]
[1729289007734,3.2078,2640.6,2640.5,0.37869]
[1729289007932,3.2078,2640.6,2640.3,0.7034]
[1729289008133,3.58649,2640.6,2640.4,0.37869]
[1729289008441,6.1578,2640.6,2640.3,0.7034]
[1729289008746,0.3787,2640.5,2640.4,0.3787]
[1729289009046,0.37871,2640.4,2640.3,1.08212]
[1729289009441,6.1578,2640.6,2640.2,0.6792]
[1729289009631,6.1578,2640.3,2639.8,0.94697]
[1729289009831,6.53653,2640.3,2640.2,0.37874]
[1729289010241,3.06135554,2640.7,2640.4,0.37871]
[1729289010242,2.95,2640.5,2640.4,0.37871]
[1729289010435,0.37868,2640.6,2640.5,0.37868]
[1729289010641,0.37868,2640.6,2640.1,4.79228]
[1729289010642,7.14505036,2640.8,2640.1,3.8454]
[1729289010936,6.53646,2640.8,2640.7,0.37866]
[1729289011138,3.2078,2640.8,2640.7,0.37866]
[1729289011936,1.07304,2640.9,2640.8,0.37865]
[1729289012345,4.4808,2640.9,2640.5,0.6394]
[1729289012547,0.37865,2640.8,2640.7,0.37865]
[1729289014344,0.37868,2640.6,2640.5,0.6394]
[1729289014546,0.37869,2640.5,2640.3,0.37871]
[1729289014846,7.45394,2640.8,2640.3,0.37871]
[1729289014847,0.37871,2640.4,2640.3,0.37871]
[1729289015050,0.37871,2640.4,2640.3,3.58651]
[1729289015344,0.37871,2640.4,2640.2,0.6467]
[1729289015538,6.7372,2640.3,2639.5,3.2078]
[1729289015742,2.95,2639.9,2639.8,0.37878]
[1729289016054,0.37877,2640.0,2639.9,0.37878]
[1729289016548,3.58657,2640.0,2639.9,0.37878]
[1729289017347,3.58657,2640.0,2639.6,1.352]
[1729289017348,3.2078,2640.0,2639.6,1.352]
[1729289017542,3.58657,2640.0,2639.9,0.37878]
[1729289018646,3.2078,2640.0,2639.6,1.352]
[1729289018851,0.37879,2639.9,2639.8,0.37878]
[1729289019536,3.58657,2640.0,2639.9,0.37878]
[1729289020451,0.37875,2640.2,2640.1,0.37875]
[1729289020746,0.37875,2640.2,2639.7,4.1548]
[1729289020747,0.6724,2640.3,2639.7,3.2078]
[1729289020944,2.95,2640.6,2639.9,0.94692]
[1729289021142,0.37872,2640.4,2640.3,0.37871]
[1729289021441,3.6337,2640.6,2640.2,0.6733]
[1729289021646,3.6337,2640.6,2640.2,1.3642]
[1729289021849,0.37871,2640.4,2640.3,0.37871]
[1729289022047,0.37872,2640.3,2640.2,1.74292]
[1729289022245,0.37872,2640.4,2640.3,0.37871]
[1729289022445,0.37872,2640.4,2640.3,0.37872]
[1729289022841,3.32869,2640.6,2640.5,0.37869]
[1729289023245,2.95,2640.6,2640.5,0.37869]
[1729289023449,3.32868,2640.6,2640.5,0.37869]
[1729289024547,0.3787,2640.5,2640.4,0.3787]
[1729289025147,0.37872,2640.3,2640.2,1.74293]
[1729289025653,0.94685,2640.2,2639.8,0.37878]
[1729289025859,0.37877,2640.0,2639.9,0.37877]
[1729289026049,2.95,2640.6,2640.0,0.6402]
[1729289026359,0.37874,2640.2,2640.1,1.04275]
[1729289026544,2.95,2640.2,2640.0,0.6402]
[1729289026745,3.58657,2640.1,2640.0,0.37876]
[1729289027250,0.98725036,2640.5,2639.8,0.664]
[1729289027455,0.98725036,2640.5,2640.4,0.37871]
[1729289027456,0.37869,2640.5,2640.4,0.37871]
[1729289028847,2.95,2640.6,2640.1,2.32747]
[1729289029046,3.58647,2640.7,2640.6,0.37868]
[1729289029253,3.2078,2640.7,2640.1,2.32747]
[1729289029450,0.37869,2640.6,2640.5,0.37869]
[1729289029649,3.58647,2640.7,2640.6,0.37868]
[1729289030057,3.58647,2640.7,2640.2,0.94682]
[1729289030058,0.37869,2640.6,2640.5,0.37869]
[1729289030352,0.37873,2640.3,2640.2,0.37872]
[1729289030549,0.37869,2640.5,2640.4,0.3787]
[1729289030755,0.37871,2640.4,2640.3,0.37871]
[1729289030950,0.3787,2640.5,2640.4,0.3787]
[1729289031449,2.95,2640.6,2640.1,1.3806]
[1729289031649,3.58651,2640.5,2640.4,0.3787]
[1729289032048,3.2078,2640.5,2640.1,1.3806]
[1729289032358,3.2078,2640.5,2640.1,0.6953]
[1729289032561,3.2078,2640.5,2640.0,0.37876]
[1729289032562,0.37876,2640.1,2640.0,0.37876]
[1729289032854,3.58654,2640.2,2640.1,0.37875]
[1729289033256,4.58495036,2640.4,2640.1,0.37875]
[1729289033445,0.37874,2640.2,2640.1,0.37875]
[1729289034763,3.58653,2640.3,2640.2,0.37874]
[1729289035153,0.37873,2640.3,2640.2,0.37874]
[1729289035346,0.37871,2640.4,2640.3,0.37872]
[1729289038560,0.37871,2640.4,2640.2,0.6818]
[1729289038561,1.36595036,2640.5,2640.4,0.37871]
[1729289039261,7.14505036,2640.6,2640.2,0.6818]
[1729289039450,0.37872,2640.4,2640.3,0.37871]
[1729289039848,0.37872,2640.4,2640.2,0.6818]
[1729289039849,0.37872,2640.3,2640.2,1.06052]
[1729289040064,0.37876,2640.1,2640.0,0.37874]
[1729289040368,4.19505036,2640.3,2639.9,1.3471]
[1729289040560,0.37876,2640.1,2640.0,0.37875]
[1729289041761,0.37875,2640.2,2640.1,0.37874]
[1729289041958,4.88765036,2640.3,2640.0,0.37875]
[1729289041959,0.37876,2640.1,2640.0,0.37875]
[1729289042160,4.88765036,2640.3,2639.9,1.3471]
[1729289042757,4.88765036,2640.3,2639.2,0.99048952]
[1729289042758,4.68867554,2640.0,2639.2,0.99048952]
[1729289042963,2.95,2639.4,2638.9,0.99048952]
[1729289043165,0.37885,2639.4,2639.3,0.37886]
[1729289043765,0.37887,2639.3,2639.2,0.37887]
[1729289044064,0.98745713,2639.5,2638.8,2.29698952]
[1729289044267,0.37887,2639.3,2639.2,0.37887]
[1729289044456,0.37889,2639.2,2639.1,0.37889]
[1729289044856,0.37888,2639.2,2639.1,0.37889]
[1729289045658,3.58667,2639.3,2639.2,0.37888]
[1729289045858,3.2078,2639.3,2639.2,0.37888]
[1729289046061,3.2078,2639.3,2639.2,4.16768]
[1729289046665,5.09618569,2639.9,2639.2,3.7888]
[1729289046666,0.98745713,2639.8,2639.2,3.7888]
[1729289046964,3.2078,2640.0,2639.9,0.37878]
[1729289046965,4.19525713,2640.0,2639.9,0.37878]
[1729289047158,3.2078,2640.0,2639.9,0.37878]
[1729289047356,2.84310569,2640.3,2639.9,6.738]
[1729289047357,0.98745713,2640.3,2639.9,6.738]
[1729289047658,4.19525713,2640.3,2639.6,2.52578952]
[1729289047861,5.20948713,2640.3,2639.6,3.47282952]
[1729289048063,4.83075713,2640.3,2639.6,2.48234]
[1729289048265,1.36620713,2640.2,2639.6,2.48234]
[1729289048569,0.37878,2639.9,2639.7,0.3788]
[1729289048764,3.58657,2640.0,2639.8,0.37878]
[1729289048963,3.58657,2640.0,2639.6,0.6413]
[1729289049165,3.58657,2640.0,2639.8,0.37878]
[1729289049359,3.58657,2640.0,2639.6,0.6413]
[1729289049560,3.2078,2640.0,2639.9,0.37878]
[1729289049759,4.19525713,2640.0,2639.9,0.37878]
[1729289049965,3.2078,2640.0,2639.9,0.37878]
[1729289050262,2.00168713,2640.3,2640.2,0.37874]
[1729289050466,0.98745713,2640.3,2640.2,0.37874]
[1729289050862,7.52396713,2640.4,2639.9,0.94694]
[1729289051062,1.36623709,2640.3,2640.1,0.37874]
[1729289051257,0.37876,2640.1,2639.7,0.6749]
[1729289051464,0.37876,2640.1,2639.8,0.37879]
[1729289051465,0.37878,2639.9,2639.8,0.37879]
[1729289051659,0.37882,2639.6,2639.5,0.37883]
[1729289051860,3.5849,2640.0,2639.4,0.99048952]
[1729289051861,0.37885,2639.5,2639.4,0.37885]
[1729289052258,3.2078,2639.7,2639.3,0.6749]
[1729289052259,2.95,2639.6,2639.3,0.6749]
[1729289052472,2.95,2639.6,2639.5,0.37884]
[1729289053771,3.32882,2639.6,2639.5,0.37884]
[1729289054072,2.95,2639.6,2639.5,0.37884]
[1729289054271,4.57411709,2639.7,2639.3,0.6749]
[1729289054575,0.37883,2639.6,2639.5,0.37882]
[1729289055065,3.2078,2639.7,2639.3,0.6749]
[1729289055272,3.58661,2639.7,2639.6,0.37882]
[1729289055473,3.2078,2639.7,2639.2,0.6952]
[1729289055671,3.2078,2639.7,2638.9,1.48573428]
[1729289055672,2.95,2639.4,2639.3,0.37886]
[1729289055875,4.96473709,2639.6,2639.5,0.37884]
[1729289056373,0.37884,2639.5,2639.4,0.37884]
[1729289057374,0.37882,2639.7,2639.6,0.37881]
[1729289057973,3.788,2639.7,2639.0,0.99048952]
[1729289058272,2.95,2639.4,2638.9,0.6751]
[1729289058574,4.68898569,2639.6,2639.5,0.37884]
[1729289058575,7.52413709,2639.6,2639.5,0.37884]
[1729289058878,6.53663,2639.6,2639.5,0.37884]